fUSD/lending_fUSD_20250515
["ID","MTS","AMOUNT","RATE_DAILY","PERIOD"]
[361157132,1747312250360,-400.0,0.0001187,2]
[361157133,1747312250370,-400.0,0.0001187,2]
[361157134,1747312250380,-400.0,0.0001187,2]
[361157135,1747312250389,-448.46,0.0001187,2]
[361157136,1747312250399,-400.0,0.0001187,2]
[361157137,1747312250408,-506.82222182,0.0001187,2]
[361157138,1747312250418,-400.0,0.0001187,2]
[361157139,1747312250428,-400.0,0.0001187,2]
[361157140,1747312250437,-400.0,0.0001187,2]
[361157141,1747312250447,-400.0,0.0001187,2]
[361157142,1747312250458,-400.0,0.0001187,2]
[361157143,1747312250469,-400.0,0.0001187,2]
[361157144,1747312250478,-400.0,0.0001187,2]
[361157145,1747312250488,-417.36754678,0.0001187,2]
[361157146,1747312250498,-400.0,0.0001187,2]
[361157147,1747312250507,-400.0,0.0001187,2]
[361157148,1747312250517,-400.0,0.0001187,2]
[361157149,1747312250527,-444.40520912,0.0001187,2]
[361157150,1747312250536,-400.0,0.0001187,2]
[361157151,1747312250546,-400.0,0.0001187,2]
[361157152,1747312250556,-400.0,0.0001187,2]
[361157153,1747312250565,-400.0,0.0001187,2]
[361157154,1747312250575,-400.0,0.0001187,2]
[361157155,1747312250588,-400.0,0.0001187,2]
[361157156,1747312250597,-400.0,0.0001187,2]
[361157157,1747312250607,-400.0,0.0001187,2]
[361157158,1747312250617,-261.255266,0.0001187,2]
[361157159,1747312250627,-400.0,0.0001187,2]
[361157160,1747312250636,-395.78789218,0.0001187,2]
[361157161,1747312250646,-400.0,0.0001187,2]
[361157162,1747312250656,-400.0,0.0001187,2]
[361157163,1747312250666,-318.34,0.0001187,2]
[361157164,1747312250676,-400.0,0.0001187,2]
[361157165,1747312250687,-400.0,0.0001187,2]
[361157166,1747312250698,-400.0,0.0001187,2]
[361157167,1747312250708,-400.0,0.0001187,2]
[361157168,1747312250718,-400.0,0.0001187,2]
[361157169,1747312250729,-572.49,0.0001187,2]
[361157170,1747312250739,-400.0,0.0001187,2]
[361157171,1747312250749,-400.0,0.0001187,2]
[361157172,1747312251043,-455.44,0.0001187,2]
[361157173,1747312251054,-545.88,0.0001187,2]
[361157174,1747312251064,-400.0,0.0001187,2]
[361157175,1747312251073,-400.0,0.0001187,2]
[361157176,1747312251085,-400.0,0.0001187,2]
[361157177,1747312251094,-500.0,0.0001187,2]
[361157178,1747312251104,-151.0,0.0001187,2]
[361157179,1747312251114,-151.0,0.0001187,2]
[361157180,1747312251123,-613.99,0.0001187,2]
[361157181,1747312251132,-524.86,0.0001187,2]
[361157182,1747312251142,-400.0,0.0001187,2]
[361157183,1747312251151,-400.0,0.0001187,2]
[361157184,1747312251160,-400.0,0.0001187,2]
[361157185,1747312251169,-559.8,0.0001187,2]
[361157186,1747312251178,-400.0,0.0001187,2]
[361157187,1747312251188,-400.0,0.0001187,2]
[361157188,1747312251197,-400.0,0.0001187,2]
[361157189,1747312251207,-7018.63,0.0001187,2]
[361157190,1747312251216,-472.72,0.0001187,2]
[361157191,1747312251225,-400.0,0.0001187,2]
[361157192,1747312251235,-1647.57,0.0001187,2]
[361157193,1747312251244,-400.0,0.0001187,2]
[361157194,1747312251253,-400.0,0.0001187,2]
[361157195,1747312251263,-233.13498201,0.0001187,2]
[361157196,1747312251272,-400.0,0.0001187,2]
[361157197,1747312251281,-464.96,0.0001187,2]
[361157198,1747312251291,-400.0,0.0001187,2]
[361157199,1747312251300,-400.0,0.0001187,2]
[361157200,1747312251310,-582.36,0.0001187,2]
[361157201,1747312251319,-340.40527236,0.0001187,2]
[361157202,1747312251329,-400.0,0.0001187,2]
[361157203,1747312251344,-505.94405178,0.0001187,2]
[361157204,1747312251354,-400.0,0.0001187,2]
[361157205,1747312251363,-400.0,0.0001187,2]
[361157206,1747312251373,-1273.86,0.0001187,2]
[361157207,1747312251382,-400.0,0.0001187,2]
[361157208,1747312251392,-400.0,0.0001187,2]
[361157209,1747312251402,-400.0,0.0001187,2]
[361157210,1747312251411,-707.6,0.0001187,2]
[361157211,1747312251421,-400.0,0.0001187,2]
[361157212,1747312251431,-400.0,0.0001187,2]
[361157213,1747312251440,-400.0,0.0001187,2]
[361157214,1747312251450,-400.0,0.0001187,2]
[361157215,1747312251460,-400.0,0.0001187,2]
[361157216,1747312251473,-400.0,0.0001187,2]
[361157217,1747312251483,-847.58,0.0001187,2]
[361157218,1747312251492,-400.0,0.0001187,2]
[361157219,1747312251502,-532.14,0.0001187,2]
[361157220,1747312251514,-400.0,0.0001187,2]
[361157221,1747312251523,-400.0,0.0001187,2]
[361157222,1747312251533,-400.0,0.0001187,2]
[361157223,1747312251542,-400.0,0.0001187,2]
[361157224,1747312251561,-504.34,0.0001187,2]
[361157225,1747312251570,-400.0,0.0001187,2]
[361157226,1747312251579,-400.0,0.0001187,2]
[361157227,1747312251592,-400.0,0.0001187,2]
[361157228,1747312251602,-400.0,0.0001187,2]
[361157229,1747312251611,-400.0,0.0001187,2]
[361157230,1747312251621,-539.45,0.0001187,2]
[361157231,1747312251631,-400.0,0.0001187,2]
[361157232,1747312251640,-400.0,0.0001187,2]
[361157233,1747312251649,-400.0,0.0001187,2]
[361157234,1747312251659,-400.0,0.0001187,2]
[361157235,1747312251669,-400.0,0.0001187,2]
[361157236,1747312251678,-400.0,0.0001187,2]
[361157237,1747312251687,-400.0,0.0001187,2]
[361157238,1747312251697,-401.38238908,0.0001187,2]
[361157239,1747312251706,-400.0,0.0001187,2]
[361157240,1747312251715,-400.0,0.0001187,2]
[361157241,1747312251725,-400.0,0.0001187,2]
[361157242,1747312251735,-400.0,0.0001187,2]
[361157243,1747312251744,-400.0,0.0001187,2]
[361157244,1747312251754,-468.8637449,0.0001187,2]
[361157245,1747312251763,-484.9961849,0.0001187,2]
[361157246,1747312251773,-400.0,0.0001187,2]
[361157247,1747312251783,-672.34,0.0001187,2]
[361157248,1747312251792,-400.0,0.0001187,2]
[361157249,1747312251802,-400.0,0.0001187,2]
[361157250,1747312251813,-500.0,0.0001187,2]
[361157251,1747312251823,-400.0,0.0001187,2]
[361157252,1747312251834,-400.0,0.0001187,2]
[361157253,1747312251844,-400.0,0.0001187,2]
[361157254,1747312251854,-400.0,0.0001187,2]
[361157255,1747312251864,-400.0,0.0001187,2]
[361157256,1747312251874,-400.0,0.0001187,2]
[361157257,1747312251887,-400.0,0.0001187,2]
[361157258,1747312251897,-271.31678994,0.0001187,2]
[361157259,1747312251907,-400.0,0.0001187,2]
[361157260,1747312251917,-400.0,0.0001187,2]
[361157261,1747312251926,-151.0,0.0001187,2]
[361157262,1747312251936,-400.0,0.0001187,2]
[361157263,1747312251946,-20110.097,0.00011873,2]
[361157264,1747312251956,-1000.0,0.00011873,2]
[361157265,1747312251966,-157.64960359,0.00011887,2]
[361157266,1747312251976,-316.65780652,0.00011887,2]
[361157267,1747312251986,-233.49366159,0.00011887,2]
[361157268,1747312251996,-401.10644226,0.00011887,2]
[361157269,1747312252006,-400.0,0.00011887,2]
[361157270,1747312252015,-400.0,0.00011887,2]
[361157271,1747312252025,-86467.1411,0.00011888,2]
[361157272,1747312252036,-500.0,0.00011888,2]
[361157273,1747312252046,-151.0,0.00011888,2]
[361157274,1747312252056,-276.236985,0.00011888,2]
[361157275,1747312252065,-278.763055,0.00011888,2]
[361157276,1747312252075,-526.66248306,0.000119,2]
[361157277,1747312252086,-167.11173739,0.000119,2]
[361157278,1747312252096,-2800.0,0.000119,4]
[361157279,1747312252105,-9668.79148091,0.000119,2]
[361157280,1747312252115,-1453.0,0.000119,2]
[361157281,1747312252124,-3341.99867798,0.000119,2]
[361157282,1747312252134,-2203.81929189,0.000119,2]
[361157283,1747312252144,-500.0,0.00011904,2]
[361157284,1747312252153,-500.0,0.00011904,2]
[361157285,1747312252162,-200.0,0.00011904,2]
[361157286,1747312252172,-441.52,0.00011937,2]
[361157287,1747312252181,-794.5027365,0.00011939,2]
[361157288,1747312252191,-2211.91830091,0.0001195,2]
[361157289,1747312252200,-151.0,0.0001195,2]
[361157290,1747312252209,-826.96,0.00011955,2]
[361157291,1747312252220,-400.0,0.00011955,2]
[361157292,1747312252230,-400.0,0.00011955,2]
[361157293,1747312252240,-1048.33,0.00011955,2]
[361157294,1747312252252,-400.0,0.00011955,2]
[361157295,1747312252262,-400.0,0.00011955,2]
[361157296,1747312252273,-400.0,0.00011955,2]
[361157297,1747312252283,-423.63,0.00011955,2]
[361157298,1747312252292,-535.8,0.00011955,2]
[361157299,1747312252302,-400.0,0.00011955,2]
[361157300,1747312252312,-400.0,0.00011955,2]
[361157301,1747312252321,-1990.2,0.00011955,2]
[361157302,1747312252331,-566.87,0.00011955,2]
[361157303,1747312252345,-500.0,0.00011973,2]
[361157304,1747312252355,-500.0,0.00011973,2]
[361157305,1747312252364,-4583.82785248,0.00011982,2]
[361157306,1747312252374,-151.0,0.00011987,2]
[361157307,1747312252384,-400.0,0.00011987,2]
[361157308,1747312252393,-400.0,0.00011987,2]
[361157309,1747312252403,-572.39,0.00011987,2]
[361157310,1747312252413,-400.0,0.00011987,2]
[361157311,1747312252423,-400.0,0.00011987,2]
[361157312,1747312252433,-400.0,0.00011987,2]
[361157313,1747312252443,-293.6,0.00011987,2]
[361157314,1747312252452,-400.0,0.00011987,2]
[361157315,1747312252465,-400.0,0.00011987,2]
[361157316,1747312252475,-400.0,0.00011987,2]
[361157317,1747312252485,-500.27,0.00011987,2]
[361157318,1747312252495,-400.0,0.00011987,2]
[361157319,1747312252504,-475.17,0.00011987,2]
[361157320,1747312252513,-427.86,0.00011987,2]
[361157321,1747312252523,-400.0,0.00011987,2]
[361157322,1747312252533,-400.0,0.00011987,2]
[361157323,1747312252542,-393.73,0.00011987,2]
[361157324,1747312252552,-400.0,0.00011987,2]
[361157325,1747312252561,-400.0,0.00011987,2]
[361157326,1747312252571,-531.85,0.00011987,2]
[361157327,1747312252582,-400.0,0.00011987,2]
[361157328,1747312252595,-2000.0,0.00011987,2]
[361157329,1747312252604,-400.0,0.00011987,2]
[361157330,1747312252614,-400.0,0.00011987,2]
[361157331,1747312252623,-400.0,0.00011987,2]
[361157332,1747312252633,-432.19,0.00011987,2]
[361157333,1747312252643,-400.0,0.00011987,2]
[361157334,1747312252652,-400.0,0.00011987,2]
[361157335,1747312252662,-472.87,0.00011987,2]
[361157336,1747312252671,-400.0,0.00011987,2]
[361157337,1747312252681,-800.26,0.00011987,2]
[361157338,1747312252690,-400.0,0.00011987,2]
[361157339,1747312252701,-400.0,0.00011987,2]
[361157340,1747312252711,-400.0,0.00011987,2]
[361157341,1747312252720,-527.61,0.00011987,2]
[361157342,1747312252729,-400.0,0.00011987,2]
[361157343,1747312252739,-400.0,0.00011987,2]
[361157344,1747312252748,-400.0,0.00011987,2]
[361157345,1747312252758,-938.56,0.00011987,2]
[361157346,1747312252768,-400.0,0.00011987,2]
[361157347,1747312252778,-400.0,0.00011987,2]
[361157348,1747312252787,-400.0,0.00011987,2]
[361157349,1747312252797,-542.45,0.00011987,2]
[361157350,1747312252807,-400.0,0.00011987,2]
[361157351,1747312252816,-400.0,0.00011987,2]
[361157352,1747312252826,-448.35,0.00011987,2]
[361157353,1747312252839,-515.02,0.00011987,2]
[361157354,1747312252849,-920.05,0.00011987,2]
[361157355,1747312252858,-400.0,0.00011987,2]
[361157356,1747312252868,-400.0,0.00011987,2]
[361157357,1747312252877,-619.27,0.00011987,2]
[361157358,1747312252887,-546.2,0.00011987,2]
[361157359,1747312252896,-400.0,0.00011987,2]
[361157360,1747312252906,-400.0,0.00011987,2]
[361157361,1747312252916,-478.80463377,0.00011987,2]
[361157362,1747312252925,-400.87,0.00011987,2]
[361157363,1747312252936,-400.0,0.00011987,2]
[361157364,1747312252946,-400.0,0.00011987,2]
[361157365,1747312252956,-400.0,0.00011987,2]
[361157366,1747312252966,-400.0,0.00011987,2]
[361157367,1747312252985,-457.69,0.00011987,2]
[361157368,1747312252996,-400.0,0.00011987,2]
[361157369,1747312253006,-704.72,0.00011987,2]
[361157370,1747312253016,-400.0,0.00011987,2]
[361157371,1747312253025,-400.0,0.00011987,2]
[361157372,1747312253035,-400.0,0.00011987,2]
[361157373,1747312253045,-450.0,0.00011987,2]
[361157374,1747312253055,-400.0,0.00011987,2]
[361157375,1747312253065,-82.12145535,0.00011987,2]
[361157376,1747312253539,-558.54854465,0.00011987,2]
[361157377,1747312253548,-400.0,0.00011987,2]
[361157378,1747312253558,-400.0,0.00011987,2]
[361157379,1747312253567,-400.0,0.00011987,2]
[361157380,1747312253577,-273.19845535,0.00011987,2]
[361157381,1747312253591,-190.35154465,0.00011987,2]
[361157382,1747312253600,-475.16,0.00011987,2]
[361157383,1747312253610,-647.93,0.00011987,2]
[361157384,1747312253619,-493.97,0.00011987,2]
[361157385,1747312253628,-408.34,0.00011987,2]
[361157386,1747312253638,-366.85759318,0.00011987,2]
[361157387,1747312253647,-400.0,0.00011987,2]
[361157388,1747312253657,-930.04,0.00011987,2]
[361157389,1747312253666,-584.59,0.00011987,2]
[361157390,1747312253675,-183.52,0.00011987,2]
[361157391,1747312253685,-400.0,0.00011987,2]
[361157392,1747312253694,-508.74,0.00011987,2]
[361157393,1747312253704,-400.0,0.00011987,2]
[361157394,1747312253714,-562.67,0.00011987,2]
[361157395,1747312253723,-400.0,0.00011987,2]
[361157396,1747312253732,-587.33,0.00011987,2]
[361157397,1747312253741,-400.0,0.00011987,2]
[361157398,1747312253750,-480.35,0.00011987,2]
[361157399,1747312253760,-400.0,0.00011987,2]
[361157400,1747312253771,-400.0,0.00011987,2]
[361157401,1747312253781,-370.08808385,0.0001199,2]
[361157402,1747312253792,-661.0,0.00012,2]
[361157403,1747312253801,-40300.74363507,0.00012,2]
[361157404,1747312253813,-406.74294083,0.00012,2]
[361157405,1747312253845,-879.0,0.0001173,2]
[361157406,1747312253857,-796.59,0.00011869,2]
[361157407,1747312253867,-4218.03286955,0.00012,2]
[361157408,1747312253883,-261.94668863,0.00012,2]
[361157409,1747312254010,-402.08597685,0.00010999,2]
[361157410,1747312254020,-400.0,0.00011596,2]
[361157411,1747312254029,-4264.42781835,0.00012,2]
[361157412,1747312254040,-38176.72557798,0.00012,2]
[361157413,1747312254281,-400.0,0.00011133,2]
[361157414,1747312254290,-400.0,0.00011133,2]
[361157415,1747312254299,-61595.79426115,0.00012,2]
[361157416,1747312254317,-251.48626329,0.00012,2]
[361157417,1747312254366,-82549.00000002,0.00012,2]
[361157418,1747312254655,-403.64365125,0.00010999,2]
[361157419,1747312254666,-401.58205549,0.00010999,2]
[361157420,1747312254676,-404.8749497,0.00010999,2]
[361157421,1747312254686,-459.3,0.00011133,2]
[361157422,1747312254696,-400.0,0.00011133,2]
[361157423,1747312254706,-400.0,0.00011133,2]
[361157424,1747312254716,-6907.87113658,0.00011642,2]
[361157425,1747312254727,-178217.03428025,0.00012,2]
[361157426,1747312254746,-920986.10297555,0.00012,2]
[361157427,1747312254758,-408462.61427175,0.00012,2]
[361157428,1747312254769,-670551.93676635,0.00012,2]
[361157429,1747312254886,-10172.24916295,0.00012,2]
[361157430,1747312254921,-644.792,0.0001173,2]
[361157431,1747312254931,-2094.83200161,0.00012,2]
[361157432,1747312255216,-401.57822303,0.00010999,2]
[361157433,1747312255226,-400.0,0.00010999,2]
[361157434,1747312255237,-400.0,0.00011133,2]
[361157435,1747312255247,-400.0,0.00011595,2]
[361157436,1747312255258,-400.0,0.00011596,2]
[361157437,1747312255268,-400.0,0.00011596,2]
[361157438,1747312255278,-628.46318162,0.00011716,2]
[361157439,1747312255438,-6279.40795496,0.00011716,2]
[361157440,1747312255448,-400.0,0.00011869,2]
[361157441,1747312255458,-162467.28702122,0.00012,2]
[361157442,1747312255472,-151.0,0.00012,2]
[361157443,1747312255482,-500.0,0.00012,2]
[361157444,1747312255491,-733471.07855454,0.00012,2]
[361157445,1747312255502,-151.0,0.00012,2]
[361157446,1747312255512,-255.0,0.00012044,2]
[361157447,1747312255522,-200.0,0.00012054,2]
[361157448,1747312255532,-200.0,0.00012054,2]
[361157449,1747312255543,-13294.74,0.00012055,2]
[361157450,1747312255553,-400.0,0.00012095,2]
[361157451,1747312255563,-400.0,0.00012095,2]
[361157452,1747312255573,-1000.0,0.000121,2]
[361157453,1747312255583,-1702.0,0.000121,2]
[361157454,1747312255599,-250.0,0.000121,2]
[361157455,1747312255609,-4583.82785248,0.00012104,2]
[361157456,1747312255620,-1000.0,0.00012121,2]
[361157457,1747312255631,-1000.0,0.00012121,2]
[361157458,1747312255641,-500.50526181,0.00012121,2]
[361157459,1747312255651,-469.89,0.00012142,2]
[361157460,1747312255661,-400.0,0.00012142,2]
[361157461,1747312255671,-499.13,0.00012142,2]
[361157462,1747312255681,-2415.52,0.00012142,2]
[361157463,1747312255691,-2561.98,0.00012142,2]
[361157464,1747312255701,-400.0,0.00012143,2]
[361157465,1747312255711,-400.0,0.00012143,2]
[361157466,1747312255721,-483.79,0.00012143,2]
[361157467,1747312255731,-709.94,0.00012143,2]
[361157468,1747312255741,-400.0,0.00012143,2]
[361157469,1747312255751,-400.0,0.00012143,2]
[361157470,1747312255761,-494.81,0.00012143,2]
[361157471,1747312255772,-481.22,0.00012143,2]
[361157472,1747312255783,-400.0,0.00012143,2]
[361157473,1747312255793,-419.11,0.00012143,2]
[361157474,1747312255802,-400.0,0.00012143,2]
[361157475,1747312255812,-624.18,0.00012143,2]
[361157476,1747312255823,-400.0,0.00012143,2]
[361157477,1747312255834,-400.0,0.00012143,2]
[361157478,1747312255847,-620.77,0.00012143,2]
[361157479,1747312255857,-400.0,0.00012143,2]
[361157480,1747312255868,-400.0,0.00012143,2]
[361157481,1747312255878,-400.0,0.00012143,2]
[361157482,1747312255889,-400.0,0.00012143,2]
[361157483,1747312255899,-400.0,0.00012143,2]
[361157484,1747312255910,-400.0,0.00012143,2]
[361157485,1747312255920,-400.0,0.00012143,2]
[361157486,1747312255931,-400.0,0.00012143,2]
[361157487,1747312255942,-440.9,0.00012143,2]
[361157488,1747312255952,-400.0,0.00012143,2]
[361157489,1747312255962,-1038.52,0.00012143,2]
[361157490,1747312255972,-400.0,0.00012143,2]
[361157491,1747312255982,-400.0,0.00012143,2]
[361157492,1747312255992,-400.0,0.00012143,2]
[361157493,1747312256002,-881.03,0.00012143,2]
[361157494,1747312256012,-407.37487023,0.00012143,2]
[361157495,1747312256022,-501.16,0.00012143,2]
[361157496,1747312256032,-400.0,0.00012143,2]
[361157497,1747312256042,-400.0,0.00012143,2]
[361157498,1747312256053,-1344.14,0.00012143,2]
[361157499,1747312256063,-400.0,0.00012143,2]
[361157500,1747312256073,-319.16756535,0.00012143,2]
[361157501,1747312256083,-451.75,0.00012143,2]
[361157502,1747312256095,-409.52102786,0.00012143,2]
[361157503,1747312256106,-400.0,0.00012143,2]
[361157504,1747312256115,-400.0,0.00012143,2]
[361157505,1747312256126,-400.0,0.00012143,2]
[361157506,1747312256135,-457.54894672,0.00012143,2]
[361157507,1747312256145,-400.0,0.00012143,2]
[361157508,1747312256156,-612.11,0.00012143,2]
[361157509,1747312256166,-462.96,0.00012143,2]
[361157510,1747312256175,-400.0,0.00012143,2]
[361157511,1747312256185,-477.75,0.00012143,2]
[361157512,1747312256195,-400.0,0.00012143,2]
[361157513,1747312256205,-400.0,0.00012143,2]
[361157514,1747312256216,-400.0,0.00012143,2]
[361157515,1747312256226,-400.0,0.00012143,2]
[361157516,1747312256236,-400.0,0.00012143,2]
[361157517,1747312256247,-400.0,0.00012143,2]
[361157518,1747312256257,-400.0,0.00012143,2]
[361157519,1747312256267,-523.21,0.00012143,2]
[361157520,1747312256278,-439.58,0.00012143,2]
[361157521,1747312256288,-400.0,0.00012143,2]
[361157522,1747312256298,-400.0,0.00012143,2]
[361157523,1747312256308,-400.0,0.00012143,2]
[361157524,1747312256317,-400.0,0.00012143,2]
[361157525,1747312256327,-576.82,0.00012143,2]
[361157526,1747312256339,-413.48,0.00012143,2]
[361157527,1747312256350,-546.12,0.00012143,2]
[361157528,1747312256360,-513.45,0.00012143,2]
[361157529,1747312256370,-416.69,0.00012143,2]
[361157530,1747312256379,-505.41,0.00012143,2]
[361157531,1747312256389,-400.0,0.00012143,2]
[361157532,1747312256399,-400.0,0.00012143,2]
[361157533,1747312256409,-465.84,0.00012143,2]
[361157534,1747312256420,-151.0,0.00012143,2]
[361157535,1747312256430,-400.0,0.00012143,2]
[361157536,1747312256440,-400.0,0.00012143,2]
[361157537,1747312256450,-409.71,0.00012143,2]
[361157538,1747312256460,-1045.24,0.00012143,2]
[361157539,1747312256474,-472.83,0.00012143,2]
[361157540,1747312256485,-400.0,0.00012143,2]
[361157541,1747312256495,-699.13,0.00012143,2]
[361157542,1747312256505,-999.87,0.00012143,2]
[361157543,1747312256515,-1258.7,0.00012143,2]
[361157544,1747312256525,-871.71,0.00012143,2]
[361157545,1747312256535,-400.0,0.00012143,2]
[361157546,1747312256545,-563.34,0.00012143,2]
[361157547,1747312256555,-522.13,0.00012143,2]
[361157548,1747312256565,-569.36,0.00012143,2]
[361157549,1747312256574,-467.55,0.00012143,2]
[361157550,1747312256584,-558.97,0.00012143,2]
[361157551,1747312256596,-400.0,0.00012143,2]
[361157552,1747312256605,-995.06,0.00012143,2]
[361157553,1747312256615,-2978.01,0.00012143,2]
[361157554,1747312256626,-400.0,0.00012143,2]
[361157555,1747312256636,-814.79,0.00012143,2]
[361157556,1747312256646,-961.53,0.00012143,2]
[361157557,1747312256656,-400.0,0.00012143,2]
[361157558,1747312256666,-1150.65,0.00012143,2]
[361157559,1747312256677,-953.55,0.00012143,2]
[361157560,1747312256687,-945.18,0.00012143,2]
[361157561,1747312256697,-605.88,0.00012143,2]
[361157562,1747312256707,-400.0,0.00012143,2]
[361157563,1747312256717,-793.37,0.00012143,2]
[361157564,1747312256727,-400.0,0.00012143,2]
[361157565,1747312256737,-400.0,0.00012143,2]
[361157566,1747312256747,-400.0,0.00012143,2]
[361157567,1747312256757,-565.3,0.00012143,2]
[361157568,1747312256767,-3659.41,0.00012143,2]
[361157569,1747312256777,-866.92,0.00012143,2]
[361157570,1747312256787,-400.0,0.00012143,2]
[361157571,1747312256797,-400.0,0.00012143,2]
[361157572,1747312256807,-400.0,0.00012143,2]
[361157573,1747312256817,-586.1,0.00012143,2]
[361157574,1747312256826,-1133.62,0.00012143,2]
[361157575,1747312256836,-400.0,0.00012143,2]
[361157576,1747312256847,-400.0,0.00012143,2]
[361157577,1747312256857,-896.17,0.00012143,2]
[361157578,1747312256868,-3422.62,0.00012143,2]
[361157579,1747312256878,-400.0,0.00012143,2]
[361157580,1747312256888,-400.0,0.00012143,2]
[361157581,1747312256898,-1508.16,0.00012143,2]
[361157582,1747312256909,-400.0,0.00012143,2]
[361157583,1747312256919,-400.0,0.00012143,2]
[361157584,1747312256930,-2309.39,0.00012143,2]
[361157585,1747312256941,-546.0,0.00012143,2]
[361157586,1747312256951,-521.69,0.00012143,2]
[361157587,1747312256962,-982.05,0.00012143,2]
[361157588,1747312256972,-499.46,0.00012143,2]
[361157589,1747312256982,-400.0,0.00012143,2]
[361157590,1747312256992,-2191.97,0.00012143,2]
[361157591,1747312257003,-957.61,0.00012143,2]
[361157592,1747312257013,-722.35,0.00012143,2]
[361157593,1747312257024,-400.0,0.00012143,2]
[361157594,1747312257035,-2080.12,0.00012143,2]
[361157595,1747312257046,-668.17,0.00012143,2]
[361157596,1747312257057,-400.0,0.00012143,2]
[361157597,1747312257067,-400.0,0.00012143,2]
[361157598,1747312257077,-400.0,0.00012143,2]
[361157599,1747312257089,-400.0,0.00012143,2]
[361157600,1747312257100,-400.0,0.00012143,2]
[361157601,1747312257110,-1597.82,0.00012143,2]
[361157602,1747312257121,-1630.72,0.00012143,2]
[361157603,1747312257131,-400.0,0.00012143,2]
[361157604,1747312257143,-3843.82,0.00012143,2]
[361157605,1747312257152,-598.25,0.00012143,2]
[361157606,1747312257162,-1950.93,0.00012143,2]
[361157607,1747312257172,-457.12,0.00012143,2]
[361157608,1747312257182,-922.32,0.00012143,2]
[361157609,1747312257192,-10611.15,0.00012143,2]
[361157610,1747312257202,-400.0,0.00012143,2]
[361157611,1747312257212,-400.0,0.00012143,2]
[361157612,1747312257223,-400.0,0.00012143,2]
[361157613,1747312257233,-1108.85,0.00012143,2]
[361157614,1747312257243,-419.55,0.00012143,2]
[361157615,1747312257253,-541.7,0.00012143,2]
[361157616,1747312257264,-501.52,0.00012143,2]
[361157617,1747312257274,-601.85,0.00012143,2]
[361157618,1747312257288,-589.76,0.00012143,2]
[361157619,1747312257298,-400.0,0.00012143,2]
[361157620,1747312257309,-400.0,0.00012143,2]
[361157621,1747312257319,-622.13,0.00012143,2]
[361157622,1747312257330,-29073.02,0.00012143,2]
[361157623,1747312257341,-3250.93,0.00012143,2]
[361157624,1747312257351,-676.29,0.00012143,2]
[361157625,1747312257362,-2267.04,0.00012143,2]
[361157626,1747312257372,-530.87,0.00012143,2]
[361157627,1747312257383,-361.36,0.00012143,2]
[361157628,1747312257393,-420.88,0.00012143,2]
[361157629,1747312257404,-796.59,0.00012143,2]
[361157630,1747312257414,-419.55,0.00012144,2]
[361157631,1747312257424,-400.0,0.00012144,2]